Workbook

Sheet March 13 Non Calculator
A1: March 13 Non Calculator
B2: q1 | C2: q2 | D2: q3 | E2: q4 | F2: q5 | G2: q6 | H2: q7a | I2: q7b | J2: q8 | K2: q9a and b | L2: q9c | M2: q10 | N2: q11 | O2: q12 | P2: q13 | Q2: q14 | R2: q15 | S2: q16 | T2: q17 | U2: q18 | V2: q19 | W2: q20ai, ii | X2: q20b | Y2: q21 | Z2: q22 | AA2: q23 | AB2: q24 | AC2: q25 | AD2: q26
B3: Multiplication and Division | C3: Scattergraphs | D3: Questionnaires | E3: Drawing Straight Line Graphs | F3: Sequences | G3: Conversion graphs | H3: Collecting Like Terms | I3: Solving Equations | J3: Worded LCM Questions | K3: Index Notation | L3: Fractional & Negative Indices | M3: Angles in Parallel Lines | N3: Percentages | O3: Ratio | P3: Angles in Polygons | Q3: Cumulative Frequency | R3: Loci and Construction | S3: Standard Form | T3: Algebraic Fractions | U3: Mixed Transformations | V3: Circle Theorems | W3: Expand & Factorise Quadratics | X3: Solving Quadratics by Factorisation | Y3: Proof | Z3: Enlargements by Negative SF | AA3: Spheres and Cones | AB3: Tree Diagrams | AC3: Transformations of Functions | AD3: Vectors
A4: Max Mark | B4: 3 | C4: 4 | D4: 3 | E4: 4 | F4: 3 | G4: 5 | H4: 2 | I4: 2 | J4: 3 | K4: 3 | L4: 1 | M4: 4 | N4: 5 | O4: 4 | P4: 3 | Q4: 7 | R4: 4 | S4: 4 | T4: 3 | U4: 3 | V4: 3 | W4: 3 | X4: 1 | Y4: 4 | Z4: 3 | AA4: 3 | AB4: 5 | AC4: 3 | AD4: 5
A5: Class Average (%) | B5: =AVERAGE(B9:B40)/B4 -> 0.4761904762 | C5: 0.3839285714 | D5: 0.5476190476 | E5: 0.4017857143 | F5: 0.5357142857 | G5: 0.2714285714 | H5: 0.875 | I5: 0.6964285714 | J5: 0.619047619 | K5: 0.5357142857 | L5: 1.714285714 | M5: 0.2946428571 | N5: 0.2571428571 | O5: 0.4017857143 | P5: 0.5357142857 | Q5: 0.2142857143 | R5: 0.3839285714 | S5: 0.2678571429 | T5: 0.5476190476 | U5: 0.5119047619 | V5: 0.4047619048 | W5: 0.4285714286 | X5: 1.321428571 | Y5: 0.3482142857 | Z5: 0.5595238095 | AA5: 0.5238095238 | AB5: =AVERAGE(AB9:AB40)/AB4 -> 0.25 | AC5: 0.6428571429 | AD5: 0.3214285714
A6: Standard Deviation | B6: =IF(COUNT(B9:B36)<2,"",STDEV(B9:B40)/B4) -> 0.2929707556 | C6: 0.267724835 | D6: 0.3038069253 | E6: 0.2485074493 | F6: 0.355315726 | G6: 0.2123190172 | H6: 0.5023094811 | I6: 0.4970148987 | J6: 0.310505836 | K6: 0.3054954246 | L6: 0.9371802806 | M6: 0.2047307562 | N6: 0.1793580558 | O6: 0.218785428 | P6: 0.3435386623 | Q6: 0.1198386418 | R6: 0.2202917138 | S6: 0.244651788 | T6: 0.3538650287 | U6: 0.3683143993 | V6: 0.2775131014 | W6: 0.4042688147 | X6: 0.9833266075 | Y6: 0.2485074493 | Z6: 0.2729743416 | AA6: 0.278570298 | AB6: =IF(COUNT(AB9:AB36)<2,"",STDEV(AB9:AB40)/AB4) -> 0.1688742684 | AC6: 0.3133329581 | AD6: 0.2061231974
B7: q1 | C7: q2 | D7: q3 | E7: q4 | F7: q5 | G7: q6 | H7: q7a | I7: q7b | J7: q8 | K7: q9a and b | L7: q9c | M7: q10 | N7: q11 | O7: q12 | P7: q13 | Q7: q14 | R7: q15 | S7: q16 | T7: q17 | U7: q18 | V7: q19 | W7: q20ai, ii | X7: q20b | Y7: q21 | Z7: q22 | AA7: q23 | AB7: q24 | AC7: q25 | AD7: q26 | AE7: Total Marks | AF7: Grade
A8: Name
A9: Sample student 1 | B9: =ROUND(RAND()*$B$4,0) -> 1 | C9: 3 | D9: 2 | E9: 1 | F9: 0 | G9: 1 | H9: 1 | I9: 2 | J9: 3 | K9: 1 | L9: 2 | M9: 2 | N9: 3 | O9: 1 | P9: 3 | Q9: 2 | R9: =ROUND(RAND()*$B$4,0) -> 2 | S9: 0 | T9: 2 | U9: 1 | V9: 0 | W9: 0 | X9: 1 | Y9: 1 | Z9: 2 | AA9: 2 | AB9: 2 | AC9: 3 | AD9: 3 | AE9: =IF(AD9="","",SUM(B9:AD9)) -> 47 | AF9: =IF(AE9="","",VLOOKUP(AE9,$AH$13:$AI$34,2)) -> C1
A10: Sample student 2 | B10: 1 | C10: 0 | D10: 1 | E10: 1 | F10: 1 | G10: 2 | H10: 3 | I10: 3 | J10: 3 | K10: 3 | L10: 2 | M10: 2 | N10: 2 | O10: 1 | P10: 1 | Q10: 1 | R10: 1 | S10: 1 | T10: 2 | U10: 2 | V10: 2 | W10: 3 | X10: 2 | Y10: 2 | Z10: 1 | AA10: 1 | AB10: 2 | AC10: 2 | AD10: 2 | AE10: =IF(AD10="","",SUM(B10:AD10)) -> 50 | AF10: =IF(AE10="","",VLOOKUP(AE10,$AH$13:$AI$34,2)) -> B3 | AH10: Grade Boundaries
A11: Sample student 3 | B11: 1 | C11: 0 | D11: 2 | E11: 2 | F11: 1 | G11: 3 | H11: 2 | I11: 2 | J11: 0 | K11: 1 | L11: 2 | M11: 1 | N11: 0 | O11: 2 | P11: 3 | Q11: 2 | R11: 0 | S11: 1 | T11: 1 | U11: 0 | V11: 2 | W11: 1 | X11: 2 | Y11: 1 | Z11: 2 | AA11: 1 | AB11: 2 | AC11: 1 | AD11: 2 | AE11: 40 | AF11: C2
A12: Sample student 4 | B12: 2 | C12: 1 | D12: 2 | E12: 3 | F12: 1 | G12: 2 | H12: 3 | I12: 2 | J12: 1 | K12: 1 | L12: 2 | M12: 2 | N12: 1 | O12: 3 | P12: 2 | Q12: 2 | R12: 3 | S12: 3 | T12: 1 | U12: 3 | V12: 2 | W12: 1 | X12: 2 | Y12: 1 | Z12: 3 | AA12: 2 | AB12: 2 | AC12: 1 | AD12: 1 | AE12: 55 | AF12: B2 | AH12: Non- Calc
A13: Sample student 5 | B13: 3 | C13: 3 | D13: 3 | E13: 0 | F13: 3 | G13: 3 | H13: 3 | I13: 1 | J13: 1 | K13: 1 | L13: 1 | M13: 2 | N13: 0 | O13: 2 | P13: 0 | Q13: 1 | R13: 3 | S13: 1 | T13: 0 | U13: 3 | V13: 2 | W13: 3 | X13: 2 | Y13: 2 | Z13: 1 | AA13: 1 | AB13: 1 | AC13: 3 | AD13: 1 | AE13: 50 | AF13: B3 | AH13: 0 | AI13: F3
A14: Sample student 6 | B14: 1 | C14: 2 | D14: 1 | E14: 1 | F14: 1 | G14: 0 | H14: 0 | I14: 1 | J14: 2 | K14: 1 | L14: 1 | M14: 0 | N14: 3 | O14: 1 | P14: 1 | Q14: 1 | R14: 1 | S14: 1 | T14: 1 | U14: 3 | V14: 1 | W14: 0 | X14: 3 | Y14: 0 | Z14: 1 | AA14: 1 | AB14: 1 | AC14: 2 | AD14: 2 | AE14: 34 | AF14: C3 | AH14: =AH13+(AH16-AH13)/3 -> 2.333333333 | AI14: F2
A15: Sample student 7 | B15: 3 | C15: 1 | D15: 2 | E15: 1 | F15: 3 | G15: 2 | H15: 2 | I15: 1 | J15: 3 | K15: 1 | L15: 3 | M15: 1 | N15: 1 | O15: 2 | P15: 2 | Q15: 1 | R15: 2 | S15: 2 | T15: 2 | U15: 0 | V15: 0 | W15: 3 | X15: 0 | Y15: 3 | Z15: 1 | AA15: 2 | AB15: 0 | AC15: 2 | AD15: 2 | AE15: 48 | AF15: B3 | AH15: =AH13+2*(AH16-AH13)/3 -> 4.666666667 | AI15: F1
A16: Sample student 8 | B16: 1 | C16: 2 | D16: 1 | E16: 3 | F16: 1 | G16: 2 | H16: 0 | I16: 1 | J16: 2 | K16: 2 | L16: 1 | M16: 2 | N16: 2 | O16: 1 | P16: 1 | Q16: 3 | R16: 1 | S16: 1 | T16: 2 | U16: 0 | V16: 2 | W16: 0 | X16: 1 | Y16: 2 | Z16: 2 | AA16: 1 | AB16: 0 | AC16: 3 | AD16: 0 | AE16: 40 | AF16: C2 | AH16: 7 | AI16: E3
A17: Sample student 9 | B17: 0 | C17: 1 | D17: 1 | E17: 3 | F17: 3 | G17: 1 | H17: 2 | I17: 0 | J17: 3 | K17: 1 | L17: 3 | M17: 1 | N17: 3 | O17: 2 | P17: 0 | Q17: 2 | R17: 3 | S17: 3 | T17: 0 | U17: 0 | V17: 3 | W17: 0 | X17: 2 | Y17: 1 | Z17: 3 | AA17: 2 | AB17: 0 | AC17: 2 | AD17: 2 | AE17: 47 | AF17: C1 | AH17: =AH16+(AH19-AH16)/3 -> 9.666666667 | AI17: E2
A18: Sample student 10 | B18: 1 | C18: 2 | D18: 2 | E18: 1 | F18: 2 | G18: 1 | H18: 2 | I18: 1 | J18: 1 | K18: 3 | L18: 0 | M18: 0 | N18: 1 | O18: 3 | P18: 2 | Q18: 1 | R18: 1 | S18: 1 | T18: 2 | U18: 3 | V18: 1 | W18: 3 | X18: 2 | Y18: 1 | Z18: 2 | AA18: 0 | AB18: 1 | AC18: 1 | AD18: 0 | AE18: 41 | AF18: C2 | AH18: =AH16+2*(AH19-AH16)/3 -> 12.33333333 | AI18: E1
A19: Sample student 11 | B19: 2 | C19: 3 | D19: 2 | E19: 1 | F19: 0 | G19: 0 | H19: 2 | I19: 1 | J19: 2 | K19: 3 | L19: 2 | M19: 1 | N19: 1 | O19: 0 | P19: 2 | Q19: 0 | R19: 2 | S19: 2 | T19: 2 | U19: 1 | V19: 1 | W19: 0 | X19: 0 | Y19: 3 | Z19: 2 | AA19: 1 | AB19: 2 | AC19: 2 | AD19: 2 | AE19: 42 | AF19: C2 | AH19: 15 | AI19: D3
A20: Sample student 12 | B20: 2 | C20: 3 | D20: 1 | E20: 0 | F20: 2 | G20: 0 | H20: 1 | I20: 2 | J20: 1 | K20: 2 | L20: 2 | M20: 1 | N20: 0 | O20: 2 | P20: 0 | Q20: 3 | R20: 2 | S20: 0 | T20: 3 | U20: 2 | V20: 1 | W20: 1 | X20: 0 | Y20: 1 | Z20: 2 | AA20: 2 | AB20: 2 | AC20: 1 | AD20: 1 | AE20: 40 | AF20: C2 | AH20: =AH19+(AH22-AH19)/3 -> 20.33333333 | AI20: D2
A21: Sample student 13 | B21: 3 | C21: 1 | D21: 0 | E21: 2 | F21: 0 | G21: 1 | H21: 2 | I21: 0 | J21: 3 | K21: 2 | L21: 3 | M21: 1 | N21: 1 | O21: 0 | P21: 3 | Q21: 1 | R21: 1 | S21: 1 | T21: 3 | U21: 1 | V21: 1 | W21: 2 | X21: 1 | Y21: 3 | Z21: 0 | AA21: 3 | AB21: 0 | AC21: 2 | AD21: 2 | AE21: 43 | AF21: C1 | AH21: =AH19+2*(AH22-AH19)/3 -> 25.66666667 | AI21: D1
A22: Sample student 14 | B22: 1 | C22: 1 | D22: 1 | E22: 2 | F22: 3 | G22: 1 | H22: 3 | I22: 3 | J22: 1 | K22: 2 | L22: 3 | M22: 2 | N22: 1 | O22: 1 | P22: 2 | Q22: 1 | R22: 2 | S22: 2 | T22: 1 | U22: 3 | V22: 1 | W22: 1 | X22: 0 | Y22: 0 | Z22: 1 | AA22: 2 | AB22: 0 | AC22: 2 | AD22: 2 | AE22: 45 | AF22: C1 | AH22: 31 | AI22: C3
A23: Sample student 15 | B23: 1 | C23: 1 | D23: 2 | E23: 2 | F23: 2 | G23: 0 | H23: 0 | I23: 2 | J23: 1 | K23: 1 | L23: 1 | M23: 0 | N23: 2 | O23: 3 | P23: 0 | Q23: 1 | R23: 1 | S23: 1 | T23: 0 | U23: 2 | V23: 2 | W23: 1 | X23: 0 | Y23: 2 | Z23: 1 | AA23: 1 | AB23: 0 | AC23: 2 | AD23: 3 | AE23: 35 | AF23: C3 | AH23: =AH22+(AH25-AH22)/3 -> 36.66666667 | AI23: C2
A24: Sample student 16 | B24: 2 | C24: 1 | D24: 1 | E24: 2 | F24: 2 | G24: 1 | H24: 3 | I24: 3 | J24: 3 | K24: 1 | L24: 2 | M24: 0 | N24: 1 | O24: 2 | P24: 3 | Q24: =ROUND(RAND()*$B$4,0) -> 3 | R24: 1 | S24: 2 | T24: 0 | U24: 1 | V24: 2 | W24: 0 | X24: 3 | Y24: 1 | Z24: 0 | AA24: 1 | AB24: 2 | AC24: 3 | AD24: 2 | AE24: 48 | AF24: B3 | AH24: =AH22+2*(AH25-AH22)/3 -> 42.33333333 | AI24: C1
A25: Sample student 17 | B25: =ROUND(RAND()*$B$4,0) -> 0 | C25: 3 | D25: 0 | E25: 2 | F25: 0 | G25: 1 | H25: 2 | I25: 0 | J25: 1 | K25: 1 | L25: 2 | M25: 3 | N25: 2 | O25: 1 | P25: 2 | Q25: 2 | R25: 2 | S25: 0 | T25: 1 | U25: 1 | V25: 1 | W25: 1 | X25: 0 | Y25: 1 | Z25: 1 | AA25: 2 | AB25: 1 | AC25: 1 | AD25: 0 | AE25: 34 | AF25: C3 | AH25: 48 | AI25: B3
A26: Sample student 18 | B26: 2 | C26: 2 | D26: 2 | E26: 1 | F26: 2 | G26: 2 | H26: 1 | I26: 3 | J26: 3 | K26: 2 | L26: 0 | M26: 1 | N26: 2 | O26: 2 | P26: 3 | Q26: 2 | R26: 0 | S26: 1 | T26: 3 | U26: 2 | V26: 2 | W26: 0 | X26: 2 | Y26: 2 | Z26: 2 | AA26: 1 | AB26: 0 | AC26: 2 | AD26: 1 | AE26: 48 | AF26: B3 | AH26: =AH25+(AH28-AH25)/3 -> 54 | AI26: B2
A27: Sample student 19 | B27: 2 | C27: 0 | D27: 2 | E27: 3 | F27: 3 | G27: 3 | H27: 3 | I27: 1 | J27: 1 | K27: 3 | L27: 3 | M27: 1 | N27: 2 | O27: 2 | P27: 2 | Q27: 1 | R27: 2 | S27: 0 | T27: 0 | U27: 2 | V27: 2 | W27: 3 | X27: 1 | Y27: 1 | Z27: 3 | AA27: 2 | AB27: 2 | AC27: 3 | AD27: 3 | AE27: 56 | AF27: B2 | AH27: =AH25+2*(AH28-AH25)/3 -> 60 | AI27: B1
A28: Sample student 20 | B28: 1 | C28: 1 | D28: 1 | E28: 0 | F28: 3 | G28: 0 | H28: 0 | I28: 1 | J28: 2 | K28: 2 | L28: 2 | M28: 2 | N28: 0 | O28: 1 | P28: 2 | Q28: 2 | R28: 1 | S28: 3 | T28: 3 | U28: 0 | V28: 1 | W28: 0 | X28: 0 | Y28: 0 | Z28: 2 | AA28: 1 | AB28: 1 | AC28: 1 | AD28: 2 | AE28: 35 | AF28: C3 | AH28: 66 | AI28: A3
A29: Sample student 21 | B29: 1 | C29: 2 | D29: 3 | E29: 1 | F29: 1 | G29: 0 | H29: 2 | I29: 1 | J29: 1 | K29: 3 | L29: 3 | M29: 0 | N29: 1 | O29: 2 | P29: 0 | Q29: 0 | R29: 1 | S29: 0 | T29: 3 | U29: 0 | V29: 2 | W29: 0 | X29: 1 | Y29: 1 | Z29: 2 | AA29: 2 | AB29: 2 | AC29: 3 | AD29: 3 | AE29: 41 | AF29: C2 | AH29: =AH28+(AH31-AH28)/3 -> 71.66666667 | AI29: A2
A30: Sample student 22 | B30: 1 | C30: 3 | D30: 2 | E30: 0 | F30: 1 | G30: 3 | H30: 1 | I30: 3 | J30: 3 | K30: 1 | L30: 1 | M30: 1 | N30: 1 | O30: 3 | P30: 1 | Q30: 1 | R30: 1 | S30: 1 | T30: 3 | U30: 2 | V30: 0 | W30: 1 | X30: 1 | Y30: 3 | Z30: 2 | AA30: 0 | AB30: 2 | AC30: 3 | AD30: 0 | AE30: 45 | AF30: C1 | AH30: =AH28+2*(AH31-AH28)/3 -> 77.33333333 | AI30: A1
A31: Sample student 23 | B31: 2 | C31: 0 | D31: 3 | E31: 2 | F31: 3 | G31: 1 | H31: 2 | I31: 1 | J31: 1 | K31: 0 | L31: 1 | M31: 2 | N31: 0 | O31: 1 | P31: 1 | Q31: 2 | R31: 2 | S31: 0 | T31: 3 | U31: 3 | V31: 1 | W31: 3 | X31: 1 | Y31: 1 | Z31: 2 | AA31: 1 | AB31: 1 | AC31: 0 | AD31: 1 | AE31: 41 | AF31: C2 | AH31: 83 | AI31: A*3
A32: Sample student 24 | B32: 1 | C32: 0 | D32: 3 | E32: 3 | F32: 0 | G32: 2 | H32: 2 | I32: 1 | J32: 2 | K32: 1 | L32: 2 | M32: 0 | N32: 1 | O32: 0 | P32: 1 | Q32: 2 | R32: 0 | S32: 0 | T32: 2 | U32: 3 | V32: 1 | W32: 0 | X32: 1 | Y32: 1 | Z32: 1 | AA32: 2 | AB32: 2 | AC32: 3 | AD32: 1 | AE32: 38 | AF32: C2 | AH32: =AH31+(AH34-AH31)/3 -> 88.66666667 | AI32: A*2
A33: Sample student 25 | B33: 0 | C33: 2 | D33: 1 | E33: 2 | F33: 2 | G33: 0 | H33: 1 | I33: 1 | J33: 2 | K33: 0 | L33: 0 | M33: 1 | N33: 1 | O33: 1 | P33: 2 | Q33: 2 | R33: 3 | S33: 0 | T33: 1 | U33: 2 | V33: 0 | W33: 3 | X33: 3 | Y33: 0 | Z33: 3 | AA33: 3 | AB33: 2 | AC33: 2 | AD33: 0 | AE33: 40 | AF33: C2 | AH33: =AH31+2*(AH34-AH31)/3 -> 94.33333333 | AI33: A*1
A34: Sample student 26 | B34: 3 | C34: 1 | D34: 0 | E34: 1 | F34: 1 | G34: 3 | H34: 3 | I34: 2 | J34: 1 | K34: 1 | L34: 1 | M34: 2 | N34: 1 | O34: 2 | P34: 1 | Q34: 2 | R34: 1 | S34: 0 | T34: 2 | U34: 1 | V34: 0 | W34: 2 | X34: 2 | Y34: 0 | Z34: 2 | AA34: 1 | AB34: 2 | AC34: 3 | AD34: 1 | AE34: 42 | AF34: C2 | AH34: 100 | AI34: A*1
A35: Sample student 27 | B35: 1 | C35: 3 | D35: 2 | E35: 3 | F35: 2 | G35: 1 | H35: 1 | I35: 0 | J35: 3 | K35: 3 | L35: 2 | M35: 1 | N35: 1 | O35: 2 | P35: 3 | Q35: 1 | R35: 2 | S35: 2 | T35: 2 | U35: 1 | V35: 0 | W35: 2 | X35: 2 | Y35: 3 | Z35: 1 | AA35: 3 | AB35: 2 | AC35: 0 | AD35: 3 | AE35: 52 | AF35: B3
A36: Sample student 28 | B36: =ROUND(RAND()*$B$4,0) -> 1 | C36: =ROUND(RAND()*$B$4,0) -> 1 | D36: 3 | E36: 2 | F36: 2 | G36: 2 | H36: 2 | I36: 0 | J36: 2 | K36: 2 | L36: 1 | M36: 1 | N36: 2 | O36: 2 | P36: 2 | Q36: 0 | R36: 2 | S36: 1 | T36: 1 | U36: 1 | V36: 1 | W36: 2 | X36: 2 | Y36: 2 | Z36: 2 | AA36: 3 | AB36: 1 | AC36: 1 | AD36: 3 | AE36: 47 | AF36: C1
